Workbook

Sheet CALC (hidden)
A1: Emision | B1: MR26 | E1: Fecha Fin | F1: Dxv | G1: Plazo Cupon | H1: Flujo Cupón | I1: Amort | J1: VP | P1: Fecha Fin Fung | Q1: Fecha Fin No Fung
A2: Contrato | B2: DC16 | E2: =IF($B$1="MR26",Q2,P2) -> 2016-09-15 | F2: =IF(OR(E2-$B$3<=0,E2>$B$4),"",E2-$B$3) ->  | P2: 2013-12-19 | Q2: 2016-09-15
A3: Fecha Valuación | B3: =DIA_VALUACION -> 2016-11-10 | D3: =IF(F3=MIN($F:$F),"VIG","") -> VIG | E3: =IF($B$1="MR26",Q3,P3) -> 2017-03-16 | F3: 126 | G3: =IF(E3-E2<0,0,E3-E2) -> 182 | H3: =IF(F3<=0,0,$B$6/36000*G3*100) -> 2.906944444 | I3: =IF(F3=MAX($F:$F),100,0) -> 0 | J3: =IF(F3="",0,(H3+I3)/(1+$B$7*182/36000)^(F3/182)) -> 2.844718784 | L3: =IF(F3="","",IF(F3=MIN($F:$F),1,L2+1)) -> 1 | M3: =IFERROR(H3/(1+$B$11*F3/36000)+SUM($M$2:$M2),0) -> 2.856908214 | P3: 2014-06-19 | Q3: 2017-03-16
A4: Vencimiento | B4: =VLOOKUP($B$1,CTOS_CASH,2,0) -> 2026-03-05 | D4: =IF(F4=MIN($F:$F),"VIG","") ->  | E4: 2017-09-14 | F4: 308 | G4: =IF(E4-E3<0,0,E4-E3) -> 182 | H4: 2.906944444 | I4: =IF(F4=MAX($F:$F),100,0) -> 0 | J4: 2.75718134 | K4: =IFERROR(H4/(1+$B$11*F4/36000),"") -> 2.787600865 | L4: 2 | M4: =IFERROR(H4/(1+$B$11*F4/36000)+SUM($M$2:$M3),0) -> 5.644509079 | P4: 2014-12-18 | Q4: 2017-09-14
A5: Venc. Futuro | B5: =VLOOKUP($B$2,CTOS_FUT,2,0) -> 2016-12-30 | E5: 2018-03-15 | F5: 490 | G5: 182 | H5: 2.906944444 | I5: 0 | J5: 2.672337591 | K5: 2.721576603 | L5: 3 | M5: =IFERROR(H5/(1+$B$11*F5/36000)+SUM($M$2:$M4),0) -> 11.2229939 | P5: 2015-06-18 | Q5: 2018-03-15
A6: Tasa Cupón | B6: =VLOOKUP($B$1,CTOS_CASH,3,0) -> 5.75 | E6: 2018-09-13 | F6: 672 | G6: 182 | H6: 2.906944444 | I6: 0 | J6: 2.590104646 | K6: =IFERROR(H6/(1+$B$11*F6/36000),"") -> 2.658607544 | L6: 4 | M6: =IFERROR(H6/(1+$B$11*F6/36000)+SUM($M$2:$M5),0) -> 22.38301873 | P6: 2015-12-17 | Q6: 2018-09-13
A7: Tasa Yield | B7: 6.28 | E7: 2019-03-14 | F7: 854 | G7: 182 | H7: 2.906944444 | I7: 0 | J7: 2.510402167 | K7: 2.59848642 | L7: 5 | M7: =IFERROR(H7/(1+$B$11*F7/36000)+SUM($M$2:$M6),0) -> 44.70591634 | P7: 2016-06-16 | Q7: 2019-03-14
A8: Precio Sucio | B8: =SUM($J:$J) -> 97.15058927 | E8: 2019-09-12 | F8: 1036 | G8: 182 | H8: 2.906944444 | I8: 0 | J8: 2.433152285 | K8: 2.541024296 | L8: 6 | M8: =IFERROR(H8/(1+$B$11*F8/36000)+SUM($M$2:$M7),0) -> 89.35437056 | P8: 2016-12-15 | Q8: 2019-09-12
A9: Precio Limpio | B9: =+B8-B10 -> 96.25614482 | E9: 2020-03-12 | F9: 1218 | G9: 182 | H9: 2.906944444 | I9: 0 | J9: 2.35827953 | K9: 2.486048587 | L9: 7 | M9: =IFERROR(H9/(1+$B$11*F9/36000)+SUM($M$2:$M8),0) -> 178.6537654 | P9: 2017-06-15 | Q9: 2020-03-12
A10: Intereses | B10: =100*$B$6/36000*(VLOOKUP("VIG",$D:$G,4,0)-VLOOKUP("VIG",$D:$G,3,0)) -> 0.8944444444 | E10: 2020-09-10 | F10: 1400 | G10: 182 | H10: 2.906944444 | I10: 0 | J10: 2.285710754 | K10: 2.433401328 | L10: 8 | M10: =IFERROR(H10/(1+$B$11*F10/36000)+SUM($M$2:$M9),0) -> 357.2548836 | P10: 2017-12-14 | Q10: 2020-09-10
A11: Fondeo | B11: =VLOOKUP($B$2,TABLA_FONDEO,3,0) -> 5.004034 | E11: 2021-03-11 | F11: 1582 | G11: 182 | H11: 2.906944444 | I11: 0 | J11: 2.215375057 | K11: 2.382937659 | L11: 9 | M11: =IFERROR(H11/(1+$B$11*F11/36000)+SUM($M$2:$M10),0) -> 714.4593035 | P11: 2018-06-14 | Q11: 2021-03-11
A12: Cupones | B12: =TRUNC(($B$5-(VLOOKUP("VIG",$D:$G,2,0)-VLOOKUP("VIG",$D:$G,4,0)))/180,0) -> 0 | E12: 2021-09-09 | F12: 1764 | G12: 182 | H12: 2.906944444 | I12: 0 | J12: 2.147203725 | K12: 2.334524489 | L12: 10 | M12: =IFERROR(H12/(1+$B$11*F12/36000)+SUM($M$2:$M11),0) -> 1428.870194 | P12: 2018-12-13 | Q12: 2021-09-09
A13: VP Cupón | B13: =IFERROR(VLOOKUP($B$12,$L:$M,2,0),0) -> 0 | E13: 2022-03-10 | F13: 1946 | G13: 182 | H13: 2.906944444 | I13: 0 | J13: 2.081130155 | K13: 2.288039329 | L13: 11 | M13: =IFERROR(H13/(1+$B$11*F13/36000)+SUM($M$2:$M12),0) -> 2857.693902 | P13: 2019-06-13 | Q13: 2022-03-10
A14: DXV FUT | B14: =+B5-B3 -> 50 | E14: 2022-09-08 | F14: 2128 | G14: 182 | H14: 2.906944444 | I14: 0 | J14: 2.017089795 | K14: 2.243369257 | L14: 12 | M14: =IFERROR(H14/(1+$B$11*F14/36000)+SUM($M$2:$M13),0) -> 5715.343135 | P14: 2019-12-11 | Q14: 2022-09-08
A15: Acarreo | B15: =(B8-B13)*(1+B11*B14/36000) -> 97.82579045 | E15: 2023-03-09 | F15: 2310 | G15: 182 | H15: 2.906944444 | I15: 0 | J15: 1.95502008 | K15: 2.200409998 | L15: 13 | M15: =IFERROR(H15/(1+$B$11*F15/36000)+SUM($M$2:$M14),0) -> 11430.64331 | P15: 2020-06-11 | Q15: 2023-03-09
A16: Tasa Yield | B16: =CALCF!B4 -> 5.892161862 | E16: 2023-09-07 | F16: 2492 | G16: 182 | H16: 2.906944444 | I16: 0 | J16: 1.894860368 | K16: 2.159065116 | L16: 14 | M16: =IFERROR(H16/(1+$B$11*F16/36000)+SUM($M$2:$M15),0) -> 22861.24527 | P16: 2020-12-10 | Q16: 2023-09-07
E17: 2024-03-07 | F17: 2674 | G17: 182 | H17: 2.906944444 | I17: 0 | J17: 1.836551886 | K17: 2.119245288 | L17: 15 | M17: =IFERROR(H17/(1+$B$11*F17/36000)+SUM($M$2:$M16),0) -> 45722.45073 | P17: 2021-06-10 | Q17: 2024-03-07
E18: 2024-09-05 | F18: 2856 | G18: 182 | H18: 2.906944444 | I18: 0 | J18: 1.780037668 | K18: 2.080867663 | L18: 16 | M18: =IFERROR(H18/(1+$B$11*F18/36000)+SUM($M$2:$M17),0) -> 91444.86308 | P18: 2021-12-09 | Q18: 2024-09-05
E19: 2025-03-06 | F19: 3038 | G19: 182 | H19: 2.906944444 | I19: 0 | J19: 1.725262501 | K19: 2.043855283 | L19: 17 | M19: =IFERROR(H19/(1+$B$11*F19/36000)+SUM($M$2:$M18),0) -> 182889.6892 | P19: 2022-06-09 | Q19: 2025-03-06
E20: 2025-09-04 | F20: 3220 | G20: 182 | H20: 2.906944444 | I20: 0 | J20: 1.67217287 | K20: 2.008136571 | L20: 18 | M20: =IFERROR(H20/(1+$B$11*F20/36000)+SUM($M$2:$M19),0) -> 365779.3426 | P20: 2022-12-08 | Q20: 2025-09-04
E21: 2026-03-05 | F21: 3402 | G21: 182 | H21: 2.906944444 | I21: 100 | J21: 57.37399806 | K21: 1.973644866 | L21: 19 | M21: =IFERROR(H21/(1+$B$11*F21/36000)+SUM($M$2:$M20),0) -> 731558.6507 | P21: 2023-06-08 | Q21: 2026-03-05
E22: 00:00:00 | G22: 0 | H22: 0 | I22: 0 | J22: 0 | M22: =IFERROR(H22/(1+$B$11*F22/36000)+SUM($M$2:$M21),0) -> 0 | P22: 2023-12-07
E23: 00:00:00 | G23: 0 | H23: 0 | I23: 0 | J23: 0 | M23: =IFERROR(H23/(1+$B$11*F23/36000)+SUM($M$2:$M22),0) -> 0 | P23: 2024-06-06
E24: 00:00:00 | G24: 0 | H24: 0 | I24: 0 | J24: 0 | M24: =IFERROR(H24/(1+$B$11*F24/36000)+SUM($M$2:$M23),0) -> 0 | P24: 2024-12-05
E25: 00:00:00 | G25: 0 | H25: 0 | I25: 0 | J25: 0 | M25: =IFERROR(H25/(1+$B$11*F25/36000)+SUM($M$2:$M24),0) -> 0 | P25: 2025-06-05
E26: 00:00:00 | G26: 0 | H26: 0 | I26: 0 | J26: 0 | M26: =IFERROR(H26/(1+$B$11*F26/36000)+SUM($M$2:$M25),0) -> 0 | P26: 2025-12-04
E27: 00:00:00 | G27: 0 | H27: 0 | I27: 0 | J27: 0 | M27: =IFERROR(H27/(1+$B$11*F27/36000)+SUM($M$2:$M26),0) -> 0 | P27: 2026-06-04
E28: 00:00:00 | G28: 0 | H28: 0 | I28: 0 | J28: 0 | M28: =IFERROR(H28/(1+$B$11*F28/36000)+SUM($M$2:$M27),0) -> 0 | P28: 2026-12-03
E29: 00:00:00 | G29: 0 | H29: 0 | I29: 0 | J29: 0 | M29: =IFERROR(H29/(1+$B$11*F29/36000)+SUM($M$2:$M28),0) -> 0 | P29: 2027-06-03
E30: 00:00:00 | G30: 0 | H30: 0 | I30: 0 | J30: 0 | M30: =IFERROR(H30/(1+$B$11*F30/36000)+SUM($M$2:$M29),0) -> 0 | P30: 2027-12-02
E31: 00:00:00 | G31: 0 | H31: 0 | I31: 0 | J31: 0 | M31: =IFERROR(H31/(1+$B$11*F31/36000)+SUM($M$2:$M30),0) -> 0 | P31: 2028-06-01
E32: 00:00:00 | G32: 0 | H32: 0 | I32: 0 | J32: 0 | M32: =IFERROR(H32/(1+$B$11*F32/36000)+SUM($M$2:$M31),0) -> 0 | P32: 2028-11-30
E33: 00:00:00 | G33: 0 | H33: 0 | I33: 0 | J33: 0 | M33: =IFERROR(H33/(1+$B$11*F33/36000)+SUM($M$2:$M32),0) -> 0 | P33: 2029-05-31
E34: 00:00:00 | F34: =IF(OR(E34-$B$3<=0,E34>$B$4),"",E34-$B$3) ->  | G34: 0 | H34: 0 | I34: 0 | J34: 0 | M34: =IFERROR(H34/(1+$B$11*F34/36000)+SUM($M$2:$M33),0) -> 0 | P34: 2029-11-29
E35: 00:00:00 | G35: 0 | H35: =IF(F35<=0,0,$B$6/36000*G35*100) -> 0 | I35: 0 | J35: =IF(F35="",0,(H35+I35)/(1+$B$7*182/36000)^(F35/182)) -> 0 | L35: =IF(F35="","",IF(F35=MIN($F:$F),1,L34+1)) ->  | M35: =IFERROR(H35/(1+$B$11*F35/36000)+SUM($M$2:$M34),0) -> 0 | P35: 2030-05-30
E36: 00:00:00 | G36: 0 | H36: 0 | I36: 0 | J36: 0 | K36: =IFERROR(H36/(1+$B$11*F36/36000),"") ->  | M36: =IFERROR(H36/(1+$B$11*F36/36000)+SUM($M$2:$M35),0) -> 0 | P36: 2030-11-28
E37: 00:00:00 | G37: 0 | H37: 0 | I37: 0 | J37: 0 | M37: =IFERROR(H37/(1+$B$11*F37/36000)+SUM($M$2:$M36),0) -> 0 | P37: 2031-05-29
E38: 00:00:00 | G38: 0 | H38: 0 | I38: 0 | J38: 0 | M38: =IFERROR(H38/(1+$B$11*F38/36000)+SUM($M$2:$M37),0) -> 0 | P38: 2031-11-27
E39: 00:00:00 | G39: 0 | H39: 0 | I39: 0 | J39: 0 | M39: =IFERROR(H39/(1+$B$11*F39/36000)+SUM($M$2:$M38),0) -> 0 | P39: 2032-05-27
E40: 00:00:00 | G40: 0 | H40: 0 | I40: 0 | J40: 0 | M40: =IFERROR(H40/(1+$B$11*F40/36000)+SUM($M$2:$M39),0) -> 0 | P40: 2032-11-25
E41: 00:00:00 | G41: 0 | H41: 0 | I41: 0 | J41: 0 | M41: =IFERROR(H41/(1+$B$11*F41/36000)+SUM($M$2:$M40),0) -> 0 | P41: 2033-05-26
E42: 00:00:00 | G42: 0 | H42: 0 | I42: 0 | J42: 0 | M42: =IFERROR(H42/(1+$B$11*F42/36000)+SUM($M$2:$M41),0) -> 0 | P42: 2033-11-24
E43: 00:00:00 | G43: 0 | H43: 0 | I43: 0 | J43: 0 | M43: =IFERROR(H43/(1+$B$11*F43/36000)+SUM($M$2:$M42),0) -> 0 | P43: 2034-05-25
E44: 00:00:00 | G44: 0 | H44: 0 | I44: 0 | J44: 0 | M44: =IFERROR(H44/(1+$B$11*F44/36000)+SUM($M$2:$M43),0) -> 0 | P44: 2034-11-23
E45: 00:00:00 | G45: 0 | H45: 0 | I45: 0 | J45: 0 | M45: =IFERROR(H45/(1+$B$11*F45/36000)+SUM($M$2:$M44),0) -> 0 | P45: 2035-05-24
E46: 00:00:00 | G46: 0 | H46: 0 | I46: 0 | J46: 0 | M46: =IFERROR(H46/(1+$B$11*F46/36000)+SUM($M$2:$M45),0) -> 0 | P46: 2035-11-22
E47: 00:00:00 | G47: 0 | H47: 0 | I47: 0 | J47: 0 | M47: =IFERROR(H47/(1+$B$11*F47/36000)+SUM($M$2:$M46),0) -> 0 | P47: 2036-05-22
E48: 00:00:00 | G48: 0 | H48: 0 | I48: 0 | J48: 0 | M48: =IFERROR(H48/(1+$B$11*F48/36000)+SUM($M$2:$M47),0) -> 0 | P48: 2036-11-20
E49: 00:00:00 | G49: 0 | H49: 0 | I49: 0 | J49: 0 | M49: =IFERROR(H49/(1+$B$11*F49/36000)+SUM($M$2:$M48),0) -> 0 | P49: 2037-05-21
E50: 00:00:00 | G50: 0 | H50: 0 | I50: 0 | J50: 0 | M50: =IFERROR(H50/(1+$B$11*F50/36000)+SUM($M$2:$M49),0) -> 0 | P50: 2037-11-19
E51: 00:00:00 | G51: 0 | H51: 0 | I51: 0 | J51: 0 | M51: =IFERROR(H51/(1+$B$11*F51/36000)+SUM($M$2:$M50),0) -> 0 | P51: 2038-05-20
E52: 00:00:00 | G52: 0 | H52: 0 | I52: 0 | J52: 0 | M52: =IFERROR(H52/(1+$B$11*F52/36000)+SUM($M$2:$M51),0) -> 0 | P52: 2038-11-18
E53: 00:00:00 | G53: 0 | H53: 0 | I53: 0 | J53: 0 | M53: =IFERROR(H53/(1+$B$11*F53/36000)+SUM($M$2:$M52),0) -> 0 | P53: 2039-05-19
E54: 00:00:00 | G54: 0 | H54: 0 | I54: 0 | J54: 0 | M54: =IFERROR(H54/(1+$B$11*F54/36000)+SUM($M$2:$M53),0) -> 0 | P54: 2039-11-17
E55: 00:00:00 | G55: 0 | H55: 0 | I55: 0 | J55: 0 | M55: =IFERROR(H55/(1+$B$11*F55/36000)+SUM($M$2:$M54),0) -> 0 | P55: 2040-05-17
E56: 00:00:00 | G56: 0 | H56: 0 | I56: 0 | J56: 0 | M56: =IFERROR(H56/(1+$B$11*F56/36000)+SUM($M$2:$M55),0) -> 0 | P56: 2040-11-15
E57: 00:00:00 | G57: 0 | H57: 0 | I57: 0 | J57: 0 | M57: =IFERROR(H57/(1+$B$11*F57/36000)+SUM($M$2:$M56),0) -> 0 | P57: 2041-05-16
E58: 00:00:00 | G58: 0 | H58: 0 | I58: 0 | J58: 0 | M58: =IFERROR(H58/(1+$B$11*F58/36000)+SUM($M$2:$M57),0) -> 0 | P58: 2041-11-14
E59: 00:00:00 | G59: 0 | H59: 0 | I59: 0 | J59: 0 | M59: =IFERROR(H59/(1+$B$11*F59/36000)+SUM($M$2:$M58),0) -> 0 | P59: 2042-05-15
E60: 00:00:00 | G60: 0 | H60: 0 | I60: 0 | J60: 0 | M60: =IFERROR(H60/(1+$B$11*F60/36000)+SUM($M$2:$M59),0) -> 0 | P60: 2042-11-13

Sheet CALCF (hidden)
A1: Fecha Valuación | B1: =+CALC!B5 -> 2016-12-30 | E1: Fecha Fin | F1: Dxv | G1: Plazo Cupon | P1: Fecha Fin Fung | Q1: Fecha Fin No Fung
A2: Vencimiento | B2: =+CALC!B4 -> 2026-03-05 | E2: =IF(CALC!$B$1="MR26",Q2,P2) -> 2016-09-15 | F2: =IF(OR(E2-$B$1<=0,E2>$B$2),"",E2-$B$1) ->  | P2: 2013-12-19 | Q2: 2016-09-15
A3: Tasa Cupón | B3: =+CALC!B6 -> 5.75 | D3: =IF(F3=MIN($F:$F),"VIG","") -> VIG | E3: =IF(CALC!$B$1="MR26",Q3,P3) -> 2017-03-16 | F3: 76 | G3: =IF(E3-E2<0,0,E3-E2) -> 182 | P3: 2014-06-19 | Q3: 2017-03-16
A4: Tasa Yield | B4: 5.892161862 | E4: =IF(CALC!$B$1="MR26",Q4,P4) -> 2017-09-14 | F4: 258 | G4: =IF(E4-E3<0,0,E4-E3) -> 182 | H4: =IF(F4<=0,0,IF(F4=MAX($F:$F),$B$3/36000*G4*100+100,$B$3/36000*G4*100)) -> 2.906944444 | I4: =IF(F4="",0,H4/(1+$B$4*182/36000)^(F4/182)) -> 2.788467237 | P4: 2014-12-18 | Q4: 2017-09-14
A5: Precio Sucio | B5: =SUM(I:I) -> 97.80356363 | E5: =IF(CALC!$B$1="MR26",Q5,P5) -> 2018-03-15 | F5: 440 | G5: 182 | H5: 2.906944444 | I5: 2.707806681 | P5: 2015-06-18 | Q5: 2018-03-15
B6: =+B5-CALC!B15 -> -0.02222681432 | E6: =IF(CALC!$B$1="MR26",Q6,P6) -> 2018-09-13 | F6: 622 | G6: 182 | H6: 2.906944444 | I6: 2.629479352 | P6: 2015-12-17 | Q6: 2018-09-13
E7: =IF(CALC!$B$1="MR26",Q7,P7) -> 2019-03-14 | F7: 804 | G7: 182 | H7: 2.906944444 | I7: 2.553417756 | P7: 2016-06-16 | Q7: 2019-03-14
E8: =IF(CALC!$B$1="MR26",Q8,P8) -> 2019-09-12 | F8: 986 | G8: 182 | H8: 2.906944444 | I8: 2.479556356 | P8: 2016-12-15 | Q8: 2019-09-12
E9: =IF(CALC!$B$1="MR26",Q9,P9) -> 2020-03-12 | F9: 1168 | G9: 182 | H9: 2.906944444 | I9: 2.407831506 | P9: 2017-06-15 | Q9: 2020-03-12
E10: =IF(CALC!$B$1="MR26",Q10,P10) -> 2020-09-10 | F10: 1350 | G10: 182 | H10: 2.906944444 | I10: 2.338181404 | P10: 2017-12-14 | Q10: 2020-09-10
E11: =IF(CALC!$B$1="MR26",Q11,P11) -> 2021-03-11 | F11: 1532 | G11: 182 | H11: 2.906944444 | I11: 2.270546034 | P11: 2018-06-14 | Q11: 2021-03-11
E12: =IF(CALC!$B$1="MR26",Q12,P12) -> 2021-09-09 | F12: 1714 | G12: 182 | H12: 2.906944444 | I12: 2.204867118 | P12: 2018-12-13 | Q12: 2021-09-09
E13: =IF(CALC!$B$1="MR26",Q13,P13) -> 2022-03-10 | F13: 1896 | G13: 182 | H13: 2.906944444 | I13: 2.141088062 | P13: 2019-06-13 | Q13: 2022-03-10
E14: =IF(CALC!$B$1="MR26",Q14,P14) -> 2022-09-08 | F14: 2078 | G14: 182 | H14: 2.906944444 | I14: 2.07915391 | P14: 2019-12-11 | Q14: 2022-09-08
E15: =IF(CALC!$B$1="MR26",Q15,P15) -> 2023-03-09 | F15: 2260 | G15: 182 | H15: 2.906944444 | I15: 2.019011296 | P15: 2020-06-11 | Q15: 2023-03-09
E16: =IF(CALC!$B$1="MR26",Q16,P16) -> 2023-09-07 | F16: 2442 | G16: 182 | H16: 2.906944444 | I16: 1.960608395 | P16: 2020-12-10 | Q16: 2023-09-07
E17: =IF(CALC!$B$1="MR26",Q17,P17) -> 2024-03-07 | F17: 2624 | G17: 182 | H17: 2.906944444 | I17: 1.903894886 | P17: 2021-06-10 | Q17: 2024-03-07
E18: =IF(CALC!$B$1="MR26",Q18,P18) -> 2024-09-05 | F18: 2806 | G18: 182 | H18: 2.906944444 | I18: 1.848821899 | P18: 2021-12-09 | Q18: 2024-09-05
E19: =IF(CALC!$B$1="MR26",Q19,P19) -> 2025-03-06 | F19: 2988 | G19: 182 | H19: 2.906944444 | I19: 1.79534198 | P19: 2022-06-09 | Q19: 2025-03-06
E20: =IF(CALC!$B$1="MR26",Q20,P20) -> 2025-09-04 | F20: 3170 | G20: 182 | H20: 2.906944444 | I20: 1.743409047 | P20: 2022-12-08 | Q20: 2025-09-04
E21: =IF(CALC!$B$1="MR26",Q21,P21) -> 2026-03-05 | F21: 3352 | G21: 182 | H21: 102.9069444 | I21: 59.93208072 | P21: 2023-06-08 | Q21: 2026-03-05
E22: =IF(CALC!$B$1="MR26",Q22,P22) -> 00:00:00 | G22: 0 | H22: 0 | I22: 0 | P22: 2023-12-07
E23: =IF(CALC!$B$1="MR26",Q23,P23) -> 00:00:00 | G23: 0 | H23: 0 | I23: 0 | P23: 2024-06-06
E24: =IF(CALC!$B$1="MR26",Q24,P24) -> 00:00:00 | G24: 0 | H24: 0 | I24: 0 | P24: 2024-12-05
E25: =IF(CALC!$B$1="MR26",Q25,P25) -> 00:00:00 | G25: 0 | H25: 0 | I25: 0 | P25: 2025-06-05
E26: =IF(CALC!$B$1="MR26",Q26,P26) -> 00:00:00 | G26: 0 | H26: 0 | I26: 0 | P26: 2025-12-04
E27: =IF(CALC!$B$1="MR26",Q27,P27) -> 00:00:00 | G27: 0 | H27: 0 | I27: 0 | P27: 2026-06-04
E28: =IF(CALC!$B$1="MR26",Q28,P28) -> 00:00:00 | G28: 0 | H28: 0 | I28: 0 | P28: 2026-12-03
E29: =IF(CALC!$B$1="MR26",Q29,P29) -> 00:00:00 | G29: 0 | H29: 0 | I29: 0 | P29: 2027-06-03
E30: =IF(CALC!$B$1="MR26",Q30,P30) -> 00:00:00 | G30: 0 | H30: 0 | I30: 0 | P30: 2027-12-02
E31: =IF(CALC!$B$1="MR26",Q31,P31) -> 00:00:00 | G31: 0 | H31: 0 | I31: 0 | P31: 2028-06-01
E32: =IF(CALC!$B$1="MR26",Q32,P32) -> 00:00:00 | G32: 0 | H32: 0 | I32: 0 | P32: 2028-11-30
E33: =IF(CALC!$B$1="MR26",Q33,P33) -> 00:00:00 | G33: 0 | H33: 0 | I33: 0 | P33: 2029-05-31
E34: =IF(CALC!$B$1="MR26",Q34,P34) -> 00:00:00 | F34: =IF(OR(E34-$B$1<=0,E34>$B$2),"",E34-$B$1) ->  | G34: 0 | H34: 0 | I34: 0 | P34: 2029-11-29
D35: =IF(F35=MIN($F:$F),"VIG","") ->  | E35: =IF(CALC!$B$1="MR26",Q35,P35) -> 00:00:00 | G35: 0 | H35: =IF(F35<=0,0,IF(F35=MAX($F:$F),$B$3/36000*G35*100+100,$B$3/36000*G35*100)) -> 0 | I35: =IF(F35="",0,H35/(1+$B$4*182/36000)^(F35/182)) -> 0 | P35: 2030-05-30
E36: =IF(CALC!$B$1="MR26",Q36,P36) -> 00:00:00 | G36: 0 | H36: 0 | I36: 0 | P36: 2030-11-28
E37: =IF(CALC!$B$1="MR26",Q37,P37) -> 00:00:00 | G37: 0 | H37: 0 | I37: 0 | P37: 2031-05-29
E38: =IF(CALC!$B$1="MR26",Q38,P38) -> 00:00:00 | G38: 0 | H38: 0 | I38: 0 | P38: 2031-11-27
E39: =IF(CALC!$B$1="MR26",Q39,P39) -> 00:00:00 | G39: 0 | H39: 0 | I39: 0 | P39: 2032-05-27
E40: =IF(CALC!$B$1="MR26",Q40,P40) -> 00:00:00 | G40: 0 | H40: 0 | I40: 0 | P40: 2032-11-25
E41: =IF(CALC!$B$1="MR26",Q41,P41) -> 00:00:00 | G41: 0 | H41: 0 | I41: 0 | P41: 2033-05-26
E42: =IF(CALC!$B$1="MR26",Q42,P42) -> 00:00:00 | G42: 0 | H42: 0 | I42: 0 | P42: 2033-11-24
E43: =IF(CALC!$B$1="MR26",Q43,P43) -> 00:00:00 | G43: 0 | H43: 0 | I43: 0 | P43: 2034-05-25
E44: =IF(CALC!$B$1="MR26",Q44,P44) -> 00:00:00 | G44: 0 | H44: 0 | I44: 0 | P44: 2034-11-23
E45: =IF(CALC!$B$1="MR26",Q45,P45) -> 00:00:00 | G45: 0 | H45: 0 | I45: 0 | P45: 2035-05-24
E46: =IF(CALC!$B$1="MR26",Q46,P46) -> 00:00:00 | G46: 0 | H46: 0 | I46: 0 | P46: 2035-11-22
E47: =IF(CALC!$B$1="MR26",Q47,P47) -> 00:00:00 | G47: 0 | H47: 0 | I47: 0 | P47: 2036-05-22
E48: =IF(CALC!$B$1="MR26",Q48,P48) -> 00:00:00 | G48: 0 | H48: 0 | I48: 0 | P48: 2036-11-20
E49: =IF(CALC!$B$1="MR26",Q49,P49) -> 00:00:00 | G49: 0 | H49: 0 | I49: 0 | P49: 2037-05-21
E50: =IF(CALC!$B$1="MR26",Q50,P50) -> 00:00:00 | G50: 0 | H50: 0 | I50: 0 | P50: 2037-11-19
E51: =IF(CALC!$B$1="MR26",Q51,P51) -> 00:00:00 | G51: 0 | H51: 0 | I51: 0 | P51: 2038-05-20
E52: =IF(CALC!$B$1="MR26",Q52,P52) -> 00:00:00 | G52: 0 | H52: 0 | I52: 0 | P52: 2038-11-18
E53: =IF(CALC!$B$1="MR26",Q53,P53) -> 00:00:00 | G53: 0 | H53: 0 | I53: 0 | P53: 2039-05-19
E54: =IF(CALC!$B$1="MR26",Q54,P54) -> 00:00:00 | G54: 0 | H54: 0 | I54: 0 | P54: 2039-11-17
E55: =IF(CALC!$B$1="MR26",Q55,P55) -> 00:00:00 | G55: 0 | H55: 0 | I55: 0 | P55: 2040-05-17
E56: =IF(CALC!$B$1="MR26",Q56,P56) -> 00:00:00 | G56: 0 | H56: 0 | I56: 0 | P56: 2040-11-15
E57: =IF(CALC!$B$1="MR26",Q57,P57) -> 00:00:00 | G57: 0 | H57: 0 | I57: 0 | P57: 2041-05-16
E58: =IF(CALC!$B$1="MR26",Q58,P58) -> 00:00:00 | G58: 0 | H58: 0 | I58: 0 | P58: 2041-11-14
E59: =IF(CALC!$B$1="MR26",Q59,P59) -> 00:00:00 | G59: 0 | H59: 0 | I59: 0 | P59: 2042-05-15
E60: =IF(CALC!$B$1="MR26",Q60,P60) -> 00:00:00 | G60: 0 | H60: 0 | I60: 0 | P60: 2042-11-13

Sheet Información
A1: 1 | B1: 4.79 | E1: Contrato | F1: Vencimiento | G1: Cupón | H1: Contrato | I1: Vencimiento
A2: 2 | B2: 4.79351 | E2: DC18 | F2: 2018-12-13 | G2: 8.5 | H2: DC16 | I2: 2016-12-30
A3: 3 | B3: 4.797231 | E3: JN21 | F3: 2021-06-10 | G3: 6.5 | H3: MR17 | I3: 2017-03-31
A4: 4 | B4: 4.800952 | E4: DC24 | F4: 2024-12-05 | G4: 10 | H4: JN17 | I4: 2017-06-30
A5: 5 | B5: 4.804462 | E5: MR26 | F5: 2026-03-05 | G5: 5.75 | H5: SP17 | I5: 2017-09-29
A6: 6 | B6: 4.807549 | E6: MY31 | F6: 2031-05-29 | G6: 7.75
A7: 7 | B7: 4.81 | E7: NV42 | F7: 2042-11-13 | G7: 7.75
A8: 8 | B8: 4.811895
A9: 9 | B9: 4.813505
A10: 10 | B10: 4.814908
A11: 11 | B11: 4.816181
A12: 12 | B12: 4.817402
A13: 13 | B13: 4.818649
A14: 14 | B14: 4.82
A15: 15 | B15: 4.820379
A16: 16 | B16: 4.819359
A17: 17 | B17: 4.817988
A18: 18 | B18: 4.817318
A19: 19 | B19: 4.818397
A20: 20 | B20: 4.822274
A21: 21 | B21: 4.83
A22: 22 | B22: 4.842174
A23: 23 | B23: 4.857654
A24: 24 | B24: 4.874879
A25: 25 | B25: 4.892287
A26: 26 | B26: 4.908318
A27: 27 | B27: 4.921409
A28: 28 | B28: 4.93
A29: 29 | B29: 4.935686
A30: 30 | B30: 4.941107
A31: 31 | B31: 4.946271
A32: 32 | B32: 4.951183
A33: 33 | B33: 4.955851
A34: 34 | B34: 4.96028
A35: 35 | B35: 4.964477
A36: 36 | B36: 4.968449
A37: 37 | B37: 4.972202
A38: 38 | B38: 4.975743
A39: 39 | B39: 4.979078
A40: 40 | B40: 4.982213
A41: 41 | B41: 4.985156
A42: 42 | B42: 4.987912
A43: 43 | B43: 4.990489
A44: 44 | B44: 4.992892
A45: 45 | B45: 4.995128
A46: 46 | B46: 4.997204
A47: 47 | B47: 4.999126
A48: 48 | B48: 5.000901
A49: 49 | B49: 5.002534
A50: 50 | B50: 5.004034
A51: 51 | B51: 5.005405
A52: 52 | B52: 5.006655
A53: 53 | B53: 5.007791
A54: 54 | B54: 5.008818
A55: 55 | B55: 5.009743
A56: 56 | B56: 5.010572
A57: 57 | B57: 5.011313
A58: 58 | B58: 5.011971
A59: 59 | B59: 5.012554
A60: 60 | B60: 5.013067
A61: 61 | B61: 5.013517
A62: 62 | B62: 5.01391
A63: 63 | B63: 5.014254
A64: 64 | B64: 5.014555
A65: 65 | B65: 5.014818
A66: 66 | B66: 5.015051
A67: 67 | B67: 5.01526
A68: 68 | B68: 5.015452
A69: 69 | B69: 5.015633
A70: 70 | B70: 5.015809
A71: 71 | B71: 5.015988
A72: 72 | B72: 5.016175
A73: 73 | B73: 5.016377
A74: 74 | B74: 5.016601
A75: 75 | B75: 5.016853
A76: 76 | B76: 5.017139
A77: 77 | B77: 5.017466
A78: 78 | B78: 5.017841
A79: 79 | B79: 5.01827
A80: 80 | B80: 5.01876
A81: 81 | B81: 5.019316
A82: 82 | B82: 5.019947
A83: 83 | B83: 5.020657
A84: 84 | B84: 5.021454
A85: 85 | B85: 5.022343
A86: 86 | B86: 5.023333
A87: 87 | B87: 5.024428
A88: 88 | B88: 5.025636
A89: 89 | B89: 5.026963
A90: 90 | B90: 5.028415
A91: 91 | B91: 5.03
A92: 92 | B92: 5.031654
A93: 93 | B93: 5.03331
A94: 94 | B94: 5.034969
A95: 95 | B95: 5.036631
A96: 96 | B96: 5.038294
A97: 97 | B97: 5.03996
A98: 98 | B98: 5.041629
A99: 99 | B99: 5.043299
A100: 100 | B100: 5.044971
A101: 101 | B101: 5.046646
A102: 102 | B102: 5.048322
A103: 103 | B103: 5.05
A104: 104 | B104: 5.05168
A105: 105 | B105: 5.053362
A106: 106 | B106: 5.055046
A107: 107 | B107: 5.056731
A108: 108 | B108: 5.058418
A109: 109 | B109: 5.060106
A110: 110 | B110: 5.061796
A111: 111 | B111: 5.063487
A112: 112 | B112: 5.06518
A113: 113 | B113: 5.066874
A114: 114 | B114: 5.068569
A115: 115 | B115: 5.070265
A116: 116 | B116: 5.071962
A117: 117 | B117: 5.073661
A118: 118 | B118: 5.07536
A119: 119 | B119: 5.07706
A120: 120 | B120: 5.078761
A121: 121 | B121: 5.080463
A122: 122 | B122: 5.082165
A123: 123 | B123: 5.083868
A124: 124 | B124: 5.085572
A125: 125 | B125: 5.087276
A126: 126 | B126: 5.088981
A127: 127 | B127: 5.090686
A128: 128 | B128: 5.092392
A129: 129 | B129: 5.094097
A130: 130 | B130: 5.095803
A131: 131 | B131: 5.097509
A132: 132 | B132: 5.099216
A133: 133 | B133: 5.100922
A134: 134 | B134: 5.102628
A135: 135 | B135: 5.104334
A136: 136 | B136: 5.10604
A137: 137 | B137: 5.107746
A138: 138 | B138: 5.109451
A139: 139 | B139: 5.111156
A140: 140 | B140: 5.112861
A141: 141 | B141: 5.114565
A142: 142 | B142: 5.116269
A143: 143 | B143: 5.117972
A144: 144 | B144: 5.119675
A145: 145 | B145: 5.121376
A146: 146 | B146: 5.123077
A147: 147 | B147: 5.124777
A148: 148 | B148: 5.126476
A149: 149 | B149: 5.128175
A150: 150 | B150: 5.129872
A151: 151 | B151: 5.131568
A152: 152 | B152: 5.133263
A153: 153 | B153: 5.134957
A154: 154 | B154: 5.136649
A155: 155 | B155: 5.13834
A156: 156 | B156: 5.14003
A157: 157 | B157: 5.141718
A158: 158 | B158: 5.143405
A159: 159 | B159: 5.14509
A160: 160 | B160: 5.146774
A161: 161 | B161: 5.148455
A162: 162 | B162: 5.150135
A163: 163 | B163: 5.151813
A164: 164 | B164: 5.15349
A165: 165 | B165: 5.155164
A166: 166 | B166: 5.156836
A167: 167 | B167: 5.158506
A168: 168 | B168: 5.160174
A169: 169 | B169: 5.16184
A170: 170 | B170: 5.163504
A171: 171 | B171: 5.165165
A172: 172 | B172: 5.166824
A173: 173 | B173: 5.16848
A174: 174 | B174: 5.170134
A175: 175 | B175: 5.171785
A176: 176 | B176: 5.173433
A177: 177 | B177: 5.175079
A178: 178 | B178: 5.176722
A179: 179 | B179: 5.178363
A180: 180 | B180: 5.18
A181: 181 | B181: 5.181636
A182: 182 | B182: 5.183271
A183: 183 | B183: 5.184905
A184: 184 | B184: 5.186539
A185: 185 | B185: 5.188173
A186: 186 | B186: 5.189805
A187: 187 | B187: 5.191438
A188: 188 | B188: 5.19307
A189: 189 | B189: 5.194701
A190: 190 | B190: 5.196332
A191: 191 | B191: 5.197962
A192: 192 | B192: 5.199592
A193: 193 | B193: 5.201222
A194: 194 | B194: 5.20285
A195: 195 | B195: 5.204479
A196: 196 | B196: 5.206107
A197: 197 | B197: 5.207734
A198: 198 | B198: 5.209361
A199: 199 | B199: 5.210987
A200: 200 | B200: 5.212614
... 1800 more rows

Sheet FUTUROS ESPECIFICOS
A1: Contrato | B1: YCash Bid | C1: YFut Bid | D1: Bid | E1: Ask | F1: Y F Ask | G1: YCash Ask | H1: Last | I1: Tasa Fut | J1: Tasa Cash | L1: BID | M1: ASK | N1: LAST | S1: Plazos | T1: DXV | U1: Fondeo
A2: ="DC18 "&Información!$H$2 -> DC18 DC16 | L2: =_xll.rtdValue(L$1,$A2,"EMD","MXN") ->  | M2: =_xll.rtdValue(M$1,$A2,"EMD","MXN") ->  | N2: =_xll.rtdValue(N$1,$A2,"EMD","MXN") ->  | P2: Fecha Valuación | S2: =+Información!H2 -> DC16 | T2: =VLOOKUP(S2,CTOS_FUT,2,0)-'FUTUROS ESPECIFICOS'!$P$4 -> 50 | U2: =VLOOKUP(T2,Información!$A:$B,2,0) -> 5.004034
U3: 3.22
A4: ="DC18 "&Información!$H$3 -> DC18 MR17 | L4: =_xll.rtdValue(L$1,$A4,"EMD","MXN") ->  | M4: =_xll.rtdValue(M$1,$A4,"EMD","MXN") ->  | N4: =_xll.rtdValue(N$1,$A4,"EMD","MXN") ->  | P4: =WORKDAY(TODAY(),2,calendario!$A$1:$A$339) -> 2016-11-10 | S4: =+Información!H3 -> MR17 | T4: =VLOOKUP(S4,CTOS_FUT,2,0)-'FUTUROS ESPECIFICOS'!$P$4 -> 141 | U4: =VLOOKUP(T4,Información!$A:$B,2,0) -> 5.114565
U5: 3.34588072
A6: ="DC18 "&Información!$H$4 -> DC18 JN17 | L6: =_xll.rtdValue(L$1,$A6,"EMD","MXN") ->  | M6: =_xll.rtdValue(M$1,$A6,"EMD","MXN") ->  | N6: =_xll.rtdValue(N$1,$A6,"EMD","MXN") ->  | S6: =+Información!H4 -> JN17 | T6: =VLOOKUP(S6,CTOS_FUT,2,0)-'FUTUROS ESPECIFICOS'!$P$4 -> 232 | U6: =VLOOKUP(T6,Información!$A:$B,2,0) -> 5.264429
U7: 3.59151833
A8: ="DC18 "&Información!$H$5 -> DC18 SP17 | L8: =_xll.rtdValue(L$1,$A8,"EMD","MXN") ->  | M8: =_xll.rtdValue(M$1,$A8,"EMD","MXN") ->  | N8: =_xll.rtdValue(N$1,$A8,"EMD","MXN") ->  | S8: =+Información!H5 -> SP17 | T8: =VLOOKUP(S8,CTOS_FUT,2,0)-'FUTUROS ESPECIFICOS'!$P$4 -> 323 | U8: =VLOOKUP(T8,Información!$A:$B,2,0) -> 5.410538
U9: 3.60036767
A12: ="JN21 "&Información!$H$2 -> JN21 DC16 | L12: =_xll.rtdValue(L$1,$A12,"EMD","MXN") ->  | M12: =_xll.rtdValue(M$1,$A12,"EMD","MXN") ->  | N12: =_xll.rtdValue(N$1,$A12,"EMD","MXN") -> 
A14: ="JN21 "&Información!$H$3 -> JN21 MR17 | L14: =_xll.rtdValue(L$1,$A14,"EMD","MXN") ->  | M14: =_xll.rtdValue(M$1,$A14,"EMD","MXN") ->  | N14: =_xll.rtdValue(N$1,$A14,"EMD","MXN") -> 
A16: ="JN21 "&Información!$H$4 -> JN21 JN17 | L16: =_xll.rtdValue(L$1,$A16,"EMD","MXN") ->  | M16: =_xll.rtdValue(M$1,$A16,"EMD","MXN") ->  | N16: =_xll.rtdValue(N$1,$A16,"EMD","MXN") -> 
A18: ="JN21 "&Información!$H$5 -> JN21 SP17 | L18: =_xll.rtdValue(L$1,$A18,"EMD","MXN") ->  | M18: =_xll.rtdValue(M$1,$A18,"EMD","MXN") ->  | N18: =_xll.rtdValue(N$1,$A18,"EMD","MXN") -> 
A22: ="DC24 "&Información!$H$2 -> DC24 DC16 | L22: =_xll.rtdValue(L$1,$A22,"EMD","MXN") ->  | M22: =_xll.rtdValue(M$1,$A22,"EMD","MXN") ->  | N22: =_xll.rtdValue(N$1,$A22,"EMD","MXN") -> 
A24: ="DC24 "&Información!$H$3 -> DC24 MR17 | L24: =_xll.rtdValue(L$1,$A24,"EMD","MXN") ->  | M24: =_xll.rtdValue(M$1,$A24,"EMD","MXN") ->  | N24: =_xll.rtdValue(N$1,$A24,"EMD","MXN") -> 
A26: ="DC24 "&Información!$H$4 -> DC24 JN17 | L26: =_xll.rtdValue(L$1,$A26,"EMD","MXN") ->  | M26: =_xll.rtdValue(M$1,$A26,"EMD","MXN") ->  | N26: =_xll.rtdValue(N$1,$A26,"EMD","MXN") -> 
A28: ="DC24 "&Información!$H$5 -> DC24 SP17 | L28: =_xll.rtdValue(L$1,$A28,"EMD","MXN") ->  | M28: =_xll.rtdValue(M$1,$A28,"EMD","MXN") ->  | N28: =_xll.rtdValue(N$1,$A28,"EMD","MXN") -> 
A32: ="MR26 "&Información!$H$2 -> MR26 DC16 | L32: =_xll.rtdValue(L$1,$A32,"EMD","MXN") ->  | M32: =_xll.rtdValue(M$1,$A32,"EMD","MXN") ->  | N32: =_xll.rtdValue(N$1,$A32,"EMD","MXN") -> 
A34: ="MR26 "&Información!$H$3 -> MR26 MR17 | L34: =_xll.rtdValue(L$1,$A34,"EMD","MXN") ->  | M34: =_xll.rtdValue(M$1,$A34,"EMD","MXN") ->  | N34: =_xll.rtdValue(N$1,$A34,"EMD","MXN") -> 
A36: ="MR26 "&Información!$H$4 -> MR26 JN17 | L36: =_xll.rtdValue(L$1,$A36,"EMD","MXN") ->  | M36: =_xll.rtdValue(M$1,$A36,"EMD","MXN") ->  | N36: =_xll.rtdValue(N$1,$A36,"EMD","MXN") -> 
A38: ="MR26 "&Información!$H$5 -> MR26 SP17 | L38: =_xll.rtdValue(L$1,$A38,"EMD","MXN") ->  | M38: =_xll.rtdValue(M$1,$A38,"EMD","MXN") ->  | N38: =_xll.rtdValue(N$1,$A38,"EMD","MXN") -> 
A42: MY31 DC16 | L42: =_xll.rtdValue(L$1,$A42,"EMD","MXN") ->  | M42: =_xll.rtdValue(M$1,$A42,"EMD","MXN") ->  | N42: =_xll.rtdValue(N$1,$A42,"EMD","MXN") -> 
A44: MY31 MR17 | L44: =_xll.rtdValue(L$1,$A44,"EMD","MXN") ->  | M44: =_xll.rtdValue(M$1,$A44,"EMD","MXN") ->  | N44: =_xll.rtdValue(N$1,$A44,"EMD","MXN") -> 
A46: MY31 JN17 | L46: =_xll.rtdValue(L$1,$A46,"EMD","MXN") ->  | M46: =_xll.rtdValue(M$1,$A46,"EMD","MXN") ->  | N46: =_xll.rtdValue(N$1,$A46,"EMD","MXN") -> 
A48: MY31 SP17 | L48: =_xll.rtdValue(L$1,$A48,"EMD","MXN") ->  | M48: =_xll.rtdValue(M$1,$A48,"EMD","MXN") ->  | N48: =_xll.rtdValue(N$1,$A48,"EMD","MXN") -> 
A52: ="NV42 "&Información!$H$2 -> NV42 DC16 | L52: =_xll.rtdValue(L$1,$A52,"EMD","MXN") ->  | M52: =_xll.rtdValue(M$1,$A52,"EMD","MXN") ->  | N52: =_xll.rtdValue(N$1,$A52,"EMD","MXN") -> 
A54: ="NV42 "&Información!$H$3 -> NV42 MR17 | L54: =_xll.rtdValue(L$1,$A54,"EMD","MXN") ->  | M54: =_xll.rtdValue(M$1,$A54,"EMD","MXN") ->  | N54: =_xll.rtdValue(N$1,$A54,"EMD","MXN") -> 
A56: ="NV42 "&Información!$H$4 -> NV42 JN17 | L56: =_xll.rtdValue(L$1,$A56,"EMD","MXN") ->  | M56: =_xll.rtdValue(M$1,$A56,"EMD","MXN") ->  | N56: =_xll.rtdValue(N$1,$A56,"EMD","MXN") -> 
A58: ="NV42 "&Información!$H$5 -> NV42 SP17 | L58: =_xll.rtdValue(L$1,$A58,"EMD","MXN") ->  | M58: =_xll.rtdValue(M$1,$A58,"EMD","MXN") ->  | N58: =_xll.rtdValue(N$1,$A58,"EMD","MXN") -> 

Sheet calendario (hidden)
A1: 2015-01-01
A2: 2015-02-02
A3: 2015-03-16
A4: 2015-04-02
A5: 2015-04-03
A6: 2015-05-01
A7: 2015-09-16
A8: 2015-11-02
A9: 2015-11-16
A10: 2015-12-25
A11: 2016-01-01
A12: 2016-02-01
A13: 2016-03-21
A14: 2016-03-24
A15: 2016-03-25
A16: 2016-09-16
A17: 2016-11-02
A18: 2016-11-21
A19: 2016-12-12
A20: 2017-02-06
A21: 2017-03-20
A22: 2017-04-13
A23: 2017-04-14
A24: 2017-05-01
A25: 2017-11-02
A26: 2017-11-20
A27: 2017-12-12
A28: 2017-12-25
A29: 2018-01-01
A30: 2018-02-05
A31: 2018-03-19
A32: 2018-03-29
A33: 2018-03-30
A34: 2018-05-01
A35: 2018-11-02
A36: 2018-11-19
A37: 2018-12-12
A38: 2018-12-25
A39: 2019-01-01
A40: 2019-02-04
A41: 2019-03-18
A42: 2019-04-18
A43: 2019-04-19
A44: 2019-05-01
A45: 2019-09-16
A46: 2019-11-18
A47: 2019-12-12
A48: 2019-12-25
A49: 2020-01-01
A50: 2020-02-03
A51: 2020-03-16
A52: 2020-04-09
A53: 2020-04-10
A54: 2020-05-01
A55: 2020-09-16
A56: 2020-11-02
A57: 2020-11-16
A58: 2020-12-25
A59: 2021-01-01
A60: 2021-02-01
A61: 2021-03-15
A62: 2021-04-01
A63: 2021-04-02
A64: 2021-09-16
A65: 2021-11-02
A66: 2021-11-15
A67: 2022-02-07
A68: 2022-03-21
A69: 2022-04-14
A70: 2022-04-15
A71: 2022-09-16
A72: 2022-11-02
A73: 2022-11-21
A74: 2022-12-12
A75: 2023-02-06
A76: 2023-03-20
A77: 2023-04-06
A78: 2023-04-07
A79: 2023-05-01
A80: 2023-11-02
A81: 2023-11-20
A82: 2023-12-12
A83: 2023-12-25
A84: 2024-01-01
A85: 2024-02-05
A86: 2024-03-18
A87: 2024-03-28
A88: 2024-03-29
A89: 2024-05-01
A90: 2024-09-16
A91: 2024-11-18
A92: 2024-12-12
A93: 2024-12-25
A94: 2025-01-01
A95: 2025-02-03
A96: 2025-03-17
A97: 2025-04-17
A98: 2025-04-18
A99: 2025-05-01
A100: 2025-09-16
A101: 2025-11-17
A102: 2025-12-12
A103: 2025-12-25
A104: 2026-01-01
A105: 2026-02-02
A106: 2026-03-16
A107: 2026-04-02
A108: 2026-04-03
A109: 2026-05-01
A110: 2026-09-16
A111: 2026-11-02
A112: 2026-11-16
A113: 2026-12-25
A114: 2027-01-01
A115: 2027-02-01
A116: 2027-03-15
A117: 2027-03-25
A118: 2027-03-26
A119: 2027-09-16
A120: 2027-11-02
A121: 2027-11-15
A122: 2028-02-07
A123: 2028-03-20
A124: 2028-04-13
A125: 2028-04-14
A126: 2028-05-01
A127: 2028-11-02
A128: 2028-11-20
A129: 2028-12-12
A130: 2028-12-25
A131: 2029-01-01
A132: 2029-02-05
A133: 2029-03-19
A134: 2029-03-29
A135: 2029-03-30
A136: 2029-05-01
A137: 2029-11-02
A138: 2029-11-19
A139: 2029-12-12
A140: 2029-12-25
A141: 2030-01-01
A142: 2030-02-04
A143: 2030-03-18
A144: 2030-04-18
A145: 2030-04-19
A146: 2030-05-01
A147: 2030-09-16
A148: 2030-11-18
A149: 2030-12-12
A150: 2030-12-25
A151: 2031-01-01
A152: 2031-02-03
A153: 2031-03-17
A154: 2031-04-10
A155: 2031-04-11
A156: 2031-05-01
A157: 2031-09-16
A158: 2031-11-17
A159: 2031-12-12
A160: 2031-12-25
A161: 2032-01-01
A162: 2032-02-02
A163: 2032-03-15
A164: 2032-03-25
A165: 2032-03-26
A166: 2032-09-16
A167: 2032-11-02
A168: 2032-11-15
A169: 2033-02-07
A170: 2033-03-21
A171: 2033-04-14
A172: 2033-04-15
A173: 2033-09-16
A174: 2033-11-02
A175: 2033-11-21
A176: 2033-12-12
A177: 2034-02-06
A178: 2034-03-20
A179: 2034-04-06
A180: 2034-04-07
A181: 2034-05-01
A182: 2034-11-02
A183: 2034-11-20
A184: 2034-12-12
A185: 2034-12-25
A186: 2035-01-01
A187: 2035-02-05
A188: 2035-03-19
A189: 2035-03-22
A190: 2035-03-23
A191: 2035-05-01
A192: 2035-11-02
A193: 2035-11-19
A194: 2035-12-12
A195: 2035-12-25
A196: 2036-01-01
A197: 2036-02-04
A198: 2036-03-17
A199: 2036-04-10
A200: 2036-04-11
... 139 more rows
